[Event "Titled Tuesday Blitz January 17 Late 2023"]
[White "Berezin, Viktor"]
[Black "Dahl, Trygve"]
[WhiteFideId "14107872"]
[BlackFideId "1513427"]
[WhiteElo "2307"]
[BlackElo "2206"]
[Result "1/2-1/2"]
[Round "05"]
[TimeControl "180+2"]
[Date "2023.01.17"]
[WhiteClock "0:00:05"]
[BlackClock "0:00:50"]

1. d4 {[%clk 0:02:58]}  d5 {[%clk 0:02:59]} 2. c4 {[%clk 0:02:56]}  c6 {[%clk 0:02:59]} 3. Nf3 {[%clk 0:02:56]}  Nf6 {[%clk 0:02:59]} 4. g3 {[%clk 0:02:56]}  dxc4 {[%clk 0:02:45]} 5. Bg2 {[%clk 0:02:54]}  e6 {[%clk 0:02:45]} 6. O-O {[%clk 0:02:55]}  Be7 {[%clk 0:02:42]} 7. a4 {[%clk 0:02:55]}  O-O {[%clk 0:02:42]} 8. Qc2 {[%clk 0:02:55]}  b5 {[%clk 0:02:37]} 9. Rd1 {[%clk 0:02:51]}  Bb7 {[%clk 0:02:31]} 10. b3 {[%clk 0:02:49]}  cxb3 {[%clk 0:02:28]} 11. Qxb3 {[%clk 0:02:50]}  a6 {[%clk 0:02:28]} 12. Nc3 {[%clk 0:02:45]}  Nbd7 {[%clk 0:02:28]} 13. Ba3 {[%clk 0:02:36]}  Nb6 {[%clk 0:02:19]} 14. Bxe7 {[%clk 0:02:33]}  Qxe7 {[%clk 0:02:20]} 15. Ne5 {[%clk 0:02:31]}  Rfc8 {[%clk 0:02:12]} 16. Rac1 {[%clk 0:02:15]}  Nfd7 {[%clk 0:02:11]} 17. Nxd7 {[%clk 0:02:00]}  Qxd7 {[%clk 0:02:11]} 18. a5 {[%clk 0:01:58]}  Nc4 {[%clk 0:02:10]} 19. Ne4 {[%clk 0:01:58]}  Nxa5 {[%clk 0:02:05]} 20. Qb4 {[%clk 0:01:56]}  Nc4 {[%clk 0:02:00]} 21. Nc5 {[%clk 0:01:52]}  Qe7 {[%clk 0:02:00]} 22. Rxc4 {[%clk 0:01:43]}  a5 {[%clk 0:01:57]} 23. Qb2 {[%clk 0:01:29]}  bxc4 {[%clk 0:01:51]} 24. Qxb7 {[%clk 0:01:25]}  Qxb7 {[%clk 0:01:51]} 25. Nxb7 {[%clk 0:01:26]}  a4 {[%clk 0:01:51]} 26. Nd6 {[%clk 0:01:22]}  Rcb8 {[%clk 0:01:46]} 27. Nxc4 {[%clk 0:00:27]}  a3 {[%clk 0:01:45]} 28. Nxa3 {[%clk 0:00:19]}  Rxa3 {[%clk 0:01:44]} 29. Bxc6 {[%clk 0:00:20]}  Ra2 {[%clk 0:01:42]} 30. Bf3 {[%clk 0:00:20]}  Rd8 {[%clk 0:01:40]} 31. Kg2 {[%clk 0:00:15]}  g6 {[%clk 0:01:40]} 32. e3 {[%clk 0:00:16]}  Rb8 {[%clk 0:01:39]} 33. Rf1 {[%clk 0:00:14]}  Rd2 {[%clk 0:01:38]} 34. g4 {[%clk 0:00:14]}  Rbb2 {[%clk 0:01:37]} 35. Kg3 {[%clk 0:00:15]}  h6 {[%clk 0:01:36]} 36. h4 {[%clk 0:00:15]}  Rb5 {[%clk 0:01:34]} 37. h5 {[%clk 0:00:15]}  gxh5 {[%clk 0:01:33]} 38. gxh5 {[%clk 0:00:16]}  Rg5+ {[%clk 0:01:33]} 39. Kf4 {[%clk 0:00:15]}  Kg7 {[%clk 0:01:33]} 40. Bg4 {[%clk 0:00:14]}  Ra2 {[%clk 0:01:26]} 41. Bf3 {[%clk 0:00:14]}  Raa5 {[%clk 0:01:26]} 42. e4 {[%clk 0:00:14]}  Ra3 {[%clk 0:01:24]} 43. Rd1 {[%clk 0:00:09]}  Kf6 {[%clk 0:01:20]} 44. Rb1 {[%clk 0:00:07]}  e5+ {[%clk 0:01:17]} 45. dxe5+ {[%clk 0:00:08]}  Rxe5 {[%clk 0:01:17]} 46. Rb6+ {[%clk 0:00:09]}  Re6 {[%clk 0:01:17]} 47. Rb5 {[%clk 0:00:09]}  Kg7 {[%clk 0:01:13]} 48. Bg4 {[%clk 0:00:09]}  Rf6+ {[%clk 0:01:11]} 49. Bf5 {[%clk 0:00:09]}  Rh3 {[%clk 0:01:10]} 50. e5 {[%clk 0:00:07]}  Rf3+ {[%clk 0:01:00]} 51. Kxf3 {[%clk 0:00:07]}  Rxf5+ {[%clk 0:01:01]} 52. Kg3 {[%clk 0:00:04]}  Rxh5 {[%clk 0:01:01]} 53. f4 {[%clk 0:00:05]}  Rh1 {[%clk 0:00:57]} 54. Kg4 {[%clk 0:00:05]}  Re1 {[%clk 0:00:52]} 55. Kf5 {[%clk 0:00:05]}  Re2 {[%clk 0:00:52]} 56. Rb3 {[%clk 0:00:04]}  Rg2 {[%clk 0:00:50]} 57. Rb7 {[%clk 0:00:04]}  Re2 {[%clk 0:00:50]} 58. Rb3 {[%clk 0:00:05]}  Rg2 {[%clk 0:00:50]} 59. Rb7 {[%clk 0:00:05]}  Re2 {[%clk 0:00:50]} 60. Rb3 {[%clk 0:00:05]} 1/2-1/2


[Site "https://www.chess.com"]

[Event "Titled Tuesday Blitz January 17 Late 2023"]
[White "Defend, Balint"]
[Black "Belenkaya, Dina"]
[WhiteFideId "17004853"]
[BlackFideId "24142654"]
[WhiteElo "1673"]
[BlackElo "2267"]
[Result "1-0"]
[Round "05"]
[TimeControl "180+2"]
[Date "2023.01.17"]
[WhiteClock "0:00:09"]
[BlackClock "0:00:02"]

1. e4 {[%clk 0:03:00]}  d5 {[%clk 0:02:58]} 2. exd5 {[%clk 0:02:58]}  Qxd5 {[%clk 0:02:59]} 3. Nc3 {[%clk 0:02:59]}  Qe5+ {[%clk 0:02:58]} 4. Be2 {[%clk 0:02:58]}  c6 {[%clk 0:02:58]} 5. d4 {[%clk 0:02:54]}  Qc7 {[%clk 0:02:57]} 6. Nf3 {[%clk 0:02:53]}  Nf6 {[%clk 0:02:55]} 7. h3 {[%clk 0:02:48]}  Bf5 {[%clk 0:02:50]} 8. Ne5 {[%clk 0:02:40]}  Nbd7 {[%clk 0:02:49]} 9. f4 {[%clk 0:02:38]}  h5 {[%clk 0:02:42]} 10. Bc4 {[%clk 0:02:16]}  e6 {[%clk 0:02:40]} 11. Be3 {[%clk 0:02:09]}  h4 {[%clk 0:02:32]} 12. O-O {[%clk 0:02:08]}  Nh5 {[%clk 0:02:12]} 13. Qf3 {[%clk 0:02:00]}  Ng3 {[%clk 0:02:08]} 14. Rfe1 {[%clk 0:01:59]}  Nf6 {[%clk 0:01:54]} 15. Bf2 {[%clk 0:01:56]}  O-O-O {[%clk 0:01:48]} 16. Ne2 {[%clk 0:01:35]}  Nxe2+ {[%clk 0:01:34]} 17. Rxe2 {[%clk 0:01:36]}  Kb8 {[%clk 0:01:13]} 18. c3 {[%clk 0:01:35]}  c5 {[%clk 0:01:08]} 19. dxc5 {[%clk 0:00:56]}  Bxc5 {[%clk 0:01:09]} 20. Bxc5 {[%clk 0:00:56]}  Qxc5+ {[%clk 0:01:10]} 21. Qf2 {[%clk 0:00:55]}  Qxf2+ {[%clk 0:00:56]} 22. Kxf2 {[%clk 0:00:55]}  Ne4+ {[%clk 0:00:55]} 23. Ke3 {[%clk 0:00:55]}  Rc8 {[%clk 0:00:45]} 24. Bd3 {[%clk 0:00:48]}  Nd6 {[%clk 0:00:44]} 25. Rd1 {[%clk 0:00:45]}  f6 {[%clk 0:00:40]} 26. Nf3 {[%clk 0:00:39]}  Bxd3 {[%clk 0:00:35]} 27. Rxd3 {[%clk 0:00:40]}  Nf5+ {[%clk 0:00:35]} 28. Kf2 {[%clk 0:00:40]}  Rc6 {[%clk 0:00:29]} 29. Nd4 {[%clk 0:00:38]}  Nxd4 {[%clk 0:00:27]} 30. Rxd4 {[%clk 0:00:39]}  Kc7 {[%clk 0:00:25]} 31. Red2 {[%clk 0:00:36]}  Kc8 {[%clk 0:00:22]} 32. Kf3 {[%clk 0:00:36]}  Re8 {[%clk 0:00:20]} 33. Rd7 {[%clk 0:00:33]}  e5 {[%clk 0:00:20]} 34. Rxg7 {[%clk 0:00:23]}  e4+ {[%clk 0:00:19]} 35. Ke3 {[%clk 0:00:22]}  Rc7 {[%clk 0:00:19]} 36. Rg4 {[%clk 0:00:21]}  f5 {[%clk 0:00:19]} 37. Rxh4 {[%clk 0:00:21]}  Rg7 {[%clk 0:00:19]} 38. Re2 {[%clk 0:00:19]}  Rg3+ {[%clk 0:00:20]} 39. Kf2 {[%clk 0:00:19]}  Rd3 {[%clk 0:00:18]} 40. Rh5 {[%clk 0:00:17]}  Rf8 {[%clk 0:00:10]} 41. Rg5 {[%clk 0:00:14]}  Kd7 {[%clk 0:00:10]} 42. h4 {[%clk 0:00:14]}  Ke6 {[%clk 0:00:10]} 43. Re3 {[%clk 0:00:13]}  Rd2+ {[%clk 0:00:10]} 44. Re2 {[%clk 0:00:13]}  Rfd8 {[%clk 0:00:10]} 45. Rg6+ {[%clk 0:00:12]}  Kf7 {[%clk 0:00:10]} 46. Rg5 {[%clk 0:00:12]}  Kf6 {[%clk 0:00:11]} 47. h5 {[%clk 0:00:12]}  Rd1 {[%clk 0:00:06]} 48. g4 {[%clk 0:00:11]}  fxg4 {[%clk 0:00:04]} 49. Rxe4 {[%clk 0:00:11]}  R8d2+ {[%clk 0:00:03]} 50. Re2 {[%clk 0:00:11]}  Rd3 {[%clk 0:00:03]} 51. Rxg4 {[%clk 0:00:08]}  Kf5 {[%clk 0:00:04]} 52. Rg3 {[%clk 0:00:08]}  Rxg3 {[%clk 0:00:03]} 53. Kxg3 {[%clk 0:00:09]}  Rg1+ {[%clk 0:00:03]} 54. Rg2 {[%clk 0:00:09]}  Rh1 {[%clk 0:00:03]} 55. Rh2 {[%clk 0:00:09]}  Rg1+ {[%clk 0:00:04]} 56. Kf2 {[%clk 0:00:09]}  Rg7 {[%clk 0:00:03]} 57. h6 {[%clk 0:00:09]}  Rh7 {[%clk 0:00:04]} 58. Kf3 {[%clk 0:00:10]}  Kf6 {[%clk 0:00:03]} 59. Ke4 {[%clk 0:00:09]}  Re7+ {[%clk 0:00:03]} 60. Kf3 {[%clk 0:00:09]}  Rh7 {[%clk 0:00:04]} 61. Rh3 {[%clk 0:00:09]}  Kg6 {[%clk 0:00:04]} 62. Kg4 {[%clk 0:00:09]}  Kf6 {[%clk 0:00:02]} 63. f5 {[%clk 0:00:09]}  Kf7 {[%clk 0:00:01]} 64. Kg5 {[%clk 0:00:09]}  Kf8 {[%clk 0:00:01]} 65. Kg6 {[%clk 0:00:09]}  Kg8 {[%clk 0:00:02]} 66. f6 {[%clk 0:00:10]}  Rd7 {[%clk 0:00:02]} 67. h7+ {[%clk 0:00:10]}  Kh8 {[%clk 0:00:02]} 68. Re3 {[%clk 0:00:10]}  Rd8 {[%clk 0:00:02]} 69. Re7 {[%clk 0:00:09]}  Rc8 {[%clk 0:00:02]} 70. Rxb7 {[%clk 0:00:09]} 1-0


[Site "https://www.chess.com"]

[Event "Titled Tuesday Blitz January 17 Late 2023"]
[White "Pesotskiy, Mikhail"]
[Black "Bilan, Danila"]
[WhiteFideId "34164453"]
[BlackFideId "24161918"]
[WhiteElo "2153"]
[BlackElo "2303"]
[Result "0-1"]
[Round "05"]
[TimeControl "180+2"]
[Date "2023.01.17"]
[WhiteClock "0:00:05"]
[BlackClock "0:00:04"]

1. d4 {[%clk 0:03:00]}  d5 {[%clk 0:02:59]} 2. c4 {[%clk 0:03:00]}  c6 {[%clk 0:02:59]} 3. Nf3 {[%clk 0:03:00]}  Nf6 {[%clk 0:03:00]} 4. Nbd2 {[%clk 0:03:00]}  e6 {[%clk 0:03:00]} 5. e3 {[%clk 0:03:00]}  Nbd7 {[%clk 0:02:59]} 6. b3 {[%clk 0:03:01]}  Bd6 {[%clk 0:02:56]} 7. Bb2 {[%clk 0:03:01]}  Qe7 {[%clk 0:02:56]} 8. Ne5 {[%clk 0:03:01]}  Ba3 {[%clk 0:02:56]} 9. Bxa3 {[%clk 0:02:53]}  Qxa3 {[%clk 0:02:56]} 10. Qc2 {[%clk 0:02:53]}  a5 {[%clk 0:02:45]} 11. Bd3 {[%clk 0:02:39]}  a4 {[%clk 0:02:39]} 12. O-O {[%clk 0:02:31]}  axb3 {[%clk 0:02:38]} 13. Nxb3 {[%clk 0:02:32]}  Nxe5 {[%clk 0:02:18]} 14. dxe5 {[%clk 0:02:33]}  Nd7 {[%clk 0:02:17]} 15. f4 {[%clk 0:02:20]}  Nc5 {[%clk 0:01:38]} 16. e4 {[%clk 0:02:19]}  Nxb3 {[%clk 0:01:16]} 17. axb3 {[%clk 0:01:53]}  Qxa1 {[%clk 0:00:59]} 18. Rxa1 {[%clk 0:01:54]}  Rxa1+ {[%clk 0:01:00]} 19. Kf2 {[%clk 0:01:55]}  dxe4 {[%clk 0:01:00]} 20. Bxe4 {[%clk 0:01:55]}  g6 {[%clk 0:00:53]} 21. h4 {[%clk 0:00:56]}  O-O {[%clk 0:00:28]} 22. h5 {[%clk 0:00:56]}  Kg7 {[%clk 0:00:27]} 23. Qb2 {[%clk 0:00:32]}  Rh1 {[%clk 0:00:26]} 24. g4 {[%clk 0:00:18]}  Rd1 {[%clk 0:00:17]} 25. g5 {[%clk 0:00:16]}  Rfd8 {[%clk 0:00:14]} 26. h6+ {[%clk 0:00:13]}  Kf8 {[%clk 0:00:11]} 27. Ke2 {[%clk 0:00:14]}  R1d2+ {[%clk 0:00:10]} 28. Qxd2 {[%clk 0:00:13]}  Rxd2+ {[%clk 0:00:10]} 29. Kxd2 {[%clk 0:00:14]}  c5 {[%clk 0:00:11]} 30. Kc3 {[%clk 0:00:14]}  b6 {[%clk 0:00:12]} 31. b4 {[%clk 0:00:14]}  Bd7 {[%clk 0:00:11]} 32. bxc5 {[%clk 0:00:09]}  bxc5 {[%clk 0:00:12]} 33. Kb3 {[%clk 0:00:10]}  Ke7 {[%clk 0:00:12]} 34. Ka3 {[%clk 0:00:11]}  Kd8 {[%clk 0:00:13]} 35. Bc2 {[%clk 0:00:10]}  Bc6 {[%clk 0:00:09]} 36. Ba4 {[%clk 0:00:10]}  Kc7 {[%clk 0:00:10]} 37. Bc2 {[%clk 0:00:07]}  Kb6 {[%clk 0:00:10]} 38. Kb3 {[%clk 0:00:06]}  Ka5 {[%clk 0:00:10]} 39. Kc3 {[%clk 0:00:05]}  Ba4 {[%clk 0:00:10]} 40. Be4 {[%clk 0:00:05]}  Bd7 {[%clk 0:00:10]} 41. Bc2 {[%clk 0:00:05]}  Bc6 {[%clk 0:00:09]} 42. Bd1 {[%clk 0:00:05]}  Be4 {[%clk 0:00:08]} 43. Bb3 {[%clk 0:00:05]}  Bf3 {[%clk 0:00:06]} 44. Bc2 {[%clk 0:00:06]}  Bc6 {[%clk 0:00:07]} 45. Bb3 {[%clk 0:00:05]}  Be4 {[%clk 0:00:05]} 46. Bd1 {[%clk 0:00:05]}  Bc6 {[%clk 0:00:04]} 47. Bh5 {[%clk 0:00:04]}  gxh5 {[%clk 0:00:02]} 48. f5 {[%clk 0:00:04]}  Be4 {[%clk 0:00:02]} 49. g6 {[%clk 0:00:04]}  fxg6 {[%clk 0:00:02]} 50. f6 {[%clk 0:00:04]}  h4 {[%clk 0:00:02]} 51. f7 {[%clk 0:00:05]}  h3 {[%clk 0:00:03]} 52. f8=Q {[%clk 0:00:05]}  h2 {[%clk 0:00:04]} 0-1


[Site "https://www.chess.com"]

[Event "Titled Tuesday Blitz January 17 Late 2023"]
[White "Sivakumar, Shaaketh"]
[Black "Przybylski, Wojciech"]
[WhiteFideId "30940176"]
[BlackFideId "1117599"]
[WhiteElo "2337"]
[BlackElo "2321"]
[Result "1-0"]
[Round "05"]
[TimeControl "180+2"]
[Date "2023.01.17"]
[WhiteClock "0:01:09"]
[BlackClock "0:00:02"]

1. e4 {[%clk 0:02:57]}  c5 {[%clk 0:02:58]} 2. Nf3 {[%clk 0:02:46]}  e6 {[%clk 0:02:57]} 3. g3 {[%clk 0:02:28]}  Nf6 {[%clk 0:02:53]} 4. Qe2 {[%clk 0:02:27]}  Nc6 {[%clk 0:02:47]} 5. Bg2 {[%clk 0:02:28]}  Be7 {[%clk 0:02:47]} 6. c3 {[%clk 0:02:28]}  O-O {[%clk 0:02:46]} 7. O-O {[%clk 0:02:29]}  e5 {[%clk 0:02:42]} 8. Rd1 {[%clk 0:02:29]}  Qc7 {[%clk 0:02:38]} 9. d4 {[%clk 0:02:27]}  cxd4 {[%clk 0:02:37]} 10. cxd4 {[%clk 0:02:28]}  d6 {[%clk 0:02:04]} 11. h3 {[%clk 0:02:17]}  a6 {[%clk 0:01:59]} 12. Nc3 {[%clk 0:02:16]}  Re8 {[%clk 0:01:56]} 13. d5 {[%clk 0:02:16]}  Nb8 {[%clk 0:01:52]} 14. Be3 {[%clk 0:02:17]}  Nbd7 {[%clk 0:01:51]} 15. Rac1 {[%clk 0:02:17]}  Qa5 {[%clk 0:01:46]} 16. Nd2 {[%clk 0:02:15]}  b5 {[%clk 0:01:41]} 17. a4 {[%clk 0:02:07]}  bxa4 {[%clk 0:01:35]} 18. Nc4 {[%clk 0:02:06]}  Qb4 {[%clk 0:01:31]} 19. Na2 {[%clk 0:02:01]}  Qb5 {[%clk 0:01:29]} 20. Qc2 {[%clk 0:01:57]}  Nc5 {[%clk 0:01:19]} 21. Bf1 {[%clk 0:01:39]}  Qb3 {[%clk 0:01:08]} 22. Bxc5 {[%clk 0:01:36]}  dxc5 {[%clk 0:01:06]} 23. Nc3 {[%clk 0:01:34]}  Rb8 {[%clk 0:00:49]} 24. Nxe5 {[%clk 0:01:27]}  Bd6 {[%clk 0:00:43]} 25. Nc6 {[%clk 0:01:24]}  Rb6 {[%clk 0:00:27]} 26. Nxa4 {[%clk 0:01:23]}  Qxc2 {[%clk 0:00:04]} 27. Rxc2 {[%clk 0:01:23]}  Rb3 {[%clk 0:00:04]} 28. e5 {[%clk 0:01:18]}  Bxe5 {[%clk 0:00:03]} 29. Nxc5 {[%clk 0:01:18]}  Rb6 {[%clk 0:00:02]} 30. Nxe5 {[%clk 0:01:08]}  Rxe5 {[%clk 0:00:02]} 31. d6 {[%clk 0:01:09]} 1-0


[Site "https://www.chess.com"]

[Event "Titled Tuesday Blitz January 17 Late 2023"]
[White "TheKnightOfBosnia"]
[Black "Rego, Pedro Filipe"]
[BlackFideId "1904310"]
[WhiteElo "2530"]
[BlackElo "2312"]
[Result "0-1"]
[Round "05"]
[TimeControl "180+2"]
[Date "2023.01.17"]
[WhiteClock "0:00:08"]
[BlackClock "0:00:15"]

1. e4 {[%clk 0:03:00]}  c5 {[%clk 0:02:58]} 2. Nf3 {[%clk 0:03:01]}  Nc6 {[%clk 0:02:57]} 3. d4 {[%clk 0:03:00]}  cxd4 {[%clk 0:02:57]} 4. Nxd4 {[%clk 0:03:01]}  g6 {[%clk 0:02:55]} 5. c4 {[%clk 0:03:01]}  Nf6 {[%clk 0:02:51]} 6. Nc3 {[%clk 0:02:59]}  d6 {[%clk 0:02:49]} 7. f3 {[%clk 0:02:57]}  Nxd4 {[%clk 0:02:45]} 8. Qxd4 {[%clk 0:02:56]}  Bg7 {[%clk 0:02:44]} 9. Be3 {[%clk 0:02:56]}  O-O {[%clk 0:02:41]} 10. Qd2 {[%clk 0:02:57]}  Be6 {[%clk 0:02:29]} 11. Bd3 {[%clk 0:02:55]}  Rc8 {[%clk 0:02:24]} 12. b3 {[%clk 0:02:55]}  d5 {[%clk 0:02:13]} 13. exd5 {[%clk 0:02:16]}  Nxd5 {[%clk 0:02:10]} 14. Rc1 {[%clk 0:02:06]}  Nxc3 {[%clk 0:01:45]} 15. Rxc3 {[%clk 0:02:07]}  Bxc3 {[%clk 0:01:41]} 16. Qxc3 {[%clk 0:02:08]}  b5 {[%clk 0:01:30]} 17. c5 {[%clk 0:02:06]}  b4 {[%clk 0:01:27]} 18. Qd2 {[%clk 0:02:00]}  Qd5 {[%clk 0:01:23]} 19. Be4 {[%clk 0:01:52]}  Qxd2+ {[%clk 0:01:19]} 20. Kxd2 {[%clk 0:01:53]}  f5 {[%clk 0:01:19]} 21. Bd3 {[%clk 0:01:47]}  f4 {[%clk 0:01:18]} 22. Bf2 {[%clk 0:01:45]}  Rfd8 {[%clk 0:01:16]} 23. Ke2 {[%clk 0:01:44]}  Rd5 {[%clk 0:01:09]} 24. Rc1 {[%clk 0:01:40]}  Rcd8 {[%clk 0:01:05]} 25. Rd1 {[%clk 0:01:33]}  Kf8 {[%clk 0:00:47]} 26. c6 {[%clk 0:01:22]}  Bf5 {[%clk 0:00:43]} 27. Bxf5 {[%clk 0:00:16]}  Rxd1 {[%clk 0:00:35]} 28. Bd7 {[%clk 0:00:10]}  R1xd7 {[%clk 0:00:28]} 29. cxd7 {[%clk 0:00:11]}  Rxd7 {[%clk 0:00:29]} 30. Bc5 {[%clk 0:00:11]}  a5 {[%clk 0:00:27]} 31. Bb6 {[%clk 0:00:11]}  Rd5 {[%clk 0:00:26]} 32. Bc7 {[%clk 0:00:11]}  g5 {[%clk 0:00:24]} 33. g3 {[%clk 0:00:10]}  e5 {[%clk 0:00:20]} 34. gxf4 {[%clk 0:00:08]}  exf4 {[%clk 0:00:21]} 35. h3 {[%clk 0:00:07]}  Kf7 {[%clk 0:00:20]} 36. Bb6 {[%clk 0:00:06]}  Ke6 {[%clk 0:00:20]} 37. Bc7 {[%clk 0:00:07]}  Rc5 {[%clk 0:00:19]} 38. Bb6 {[%clk 0:00:06]}  Rc2+ {[%clk 0:00:20]} 39. Kd3 {[%clk 0:00:07]}  Rxa2 {[%clk 0:00:20]} 40. Ke4 {[%clk 0:00:07]}  a4 {[%clk 0:00:20]} 41. bxa4 {[%clk 0:00:07]}  b3 {[%clk 0:00:20]} 42. Bd4 {[%clk 0:00:06]}  Rxa4 {[%clk 0:00:20]} 43. Kd3 {[%clk 0:00:05]}  Rxd4+ {[%clk 0:00:19]} 44. Kxd4 {[%clk 0:00:06]}  b2 {[%clk 0:00:19]} 45. Kc3 {[%clk 0:00:06]}  b1=Q {[%clk 0:00:19]} 46. h4 {[%clk 0:00:07]}  Qd1 {[%clk 0:00:18]} 47. hxg5 {[%clk 0:00:08]}  Kd5 {[%clk 0:00:17]} 48. g6 {[%clk 0:00:08]}  hxg6 {[%clk 0:00:16]} 49. Kb2 {[%clk 0:00:08]}  Kc4 {[%clk 0:00:15]} 50. Ka3 {[%clk 0:00:08]}  Qa1# {[%clk 0:00:15]} 0-1


[Site "https://www.chess.com"]

[Event "Titled Tuesday Blitz January 17 Late 2023"]
[White "Golubev, Mikhail"]
[Black "Figorito, Nick"]
[WhiteFideId "14100983"]
[BlackFideId "30923689"]
[WhiteElo "2461"]
[BlackElo "2036"]
[Result "1-0"]
[Round "05"]
[TimeControl "180+2"]
[Date "2023.01.17"]
[WhiteClock "0:01:32"]
[BlackClock "0:01:29"]

1. e4 {[%clk 0:02:56]}  e6 {[%clk 0:03:00]} 2. Nc3 {[%clk 0:02:55]}  d5 {[%clk 0:03:00]} 3. d4 {[%clk 0:02:55]}  Bb4 {[%clk 0:03:00]} 4. e5 {[%clk 0:02:54]}  c5 {[%clk 0:03:00]} 5. a3 {[%clk 0:02:54]}  Bxc3+ {[%clk 0:03:01]} 6. bxc3 {[%clk 0:02:55]}  Ne7 {[%clk 0:03:01]} 7. a4 {[%clk 0:02:54]}  Qa5 {[%clk 0:03:01]} 8. Bd2 {[%clk 0:02:53]}  Nbc6 {[%clk 0:02:59]} 9. Nf3 {[%clk 0:02:53]}  O-O {[%clk 0:02:49]} 10. Bd3 {[%clk 0:02:51]}  c4 {[%clk 0:02:32]} 11. Bxh7+ {[%clk 0:02:46]}  Kxh7 {[%clk 0:02:33]} 12. Ng5+ {[%clk 0:02:46]}  Kg6 {[%clk 0:02:34]} 13. h4 {[%clk 0:02:13]}  Bd7 {[%clk 0:01:42]} 14. Qg4 {[%clk 0:01:42]}  f5 {[%clk 0:01:35]} 15. h5+ {[%clk 0:01:36]}  Kh6 {[%clk 0:01:29]} 16. Nxe6+ {[%clk 0:01:32]} 1-0


[Site "https://www.chess.com"]

[Event "Titled Tuesday Blitz January 17 Late 2023"]
[White "Souleidis, Georgios"]
[Black "Stachanczyk, Jacek"]
[WhiteFideId "4206827"]
[BlackFideId "1116657"]
[WhiteElo "2419"]
[BlackElo "2147"]
[Result "1-0"]
[Round "05"]
[TimeControl "180+2"]
[Date "2023.01.17"]
[WhiteClock "0:00:14"]
[BlackClock "0:00:32"]

1. e4 {[%clk 0:02:48]}  c5 {[%clk 0:02:59]} 2. Nf3 {[%clk 0:02:48]}  d6 {[%clk 0:02:58]} 3. Bc4 {[%clk 0:02:47]}  Nf6 {[%clk 0:02:57]} 4. d3 {[%clk 0:02:47]}  g6 {[%clk 0:02:55]} 5. O-O {[%clk 0:02:47]}  Bg7 {[%clk 0:02:55]} 6. c3 {[%clk 0:02:48]}  Nc6 {[%clk 0:02:56]} 7. Re1 {[%clk 0:02:47]}  O-O {[%clk 0:02:56]} 8. h3 {[%clk 0:02:48]}  a6 {[%clk 0:02:48]} 9. Bb3 {[%clk 0:02:48]}  b5 {[%clk 0:02:47]} 10. d4 {[%clk 0:02:48]}  e5 {[%clk 0:02:41]} 11. Bg5 {[%clk 0:02:24]}  Qc7 {[%clk 0:02:33]} 12. dxc5 {[%clk 0:02:16]}  dxc5 {[%clk 0:02:31]} 13. Bxf6 {[%clk 0:02:13]}  Bxf6 {[%clk 0:02:31]} 14. Bd5 {[%clk 0:02:09]}  Rb8 {[%clk 0:02:21]} 15. a4 {[%clk 0:02:05]}  Ne7 {[%clk 0:02:20]} 16. axb5 {[%clk 0:01:56]}  axb5 {[%clk 0:02:19]} 17. Bb3 {[%clk 0:01:40]}  c4 {[%clk 0:02:19]} 18. Bc2 {[%clk 0:01:40]}  Rd8 {[%clk 0:02:14]} 19. Qe2 {[%clk 0:01:40]}  Bg7 {[%clk 0:01:54]} 20. Nbd2 {[%clk 0:01:35]}  h6 {[%clk 0:01:43]} 21. Nf1 {[%clk 0:01:36]}  Be6 {[%clk 0:01:34]} 22. Ne3 {[%clk 0:01:33]}  Nc8 {[%clk 0:01:33]} 23. Red1 {[%clk 0:01:27]}  Nb6 {[%clk 0:01:32]} 24. Rxd8+ {[%clk 0:00:59]}  Rxd8 {[%clk 0:01:33]} 25. Ra5 {[%clk 0:00:50]}  Qc6 {[%clk 0:01:24]} 26. Ng4 {[%clk 0:00:45]}  Bxg4 {[%clk 0:01:14]} 27. hxg4 {[%clk 0:00:45]}  Nd7 {[%clk 0:01:13]} 28. b3 {[%clk 0:00:35]}  cxb3 {[%clk 0:01:06]} 29. Bxb3 {[%clk 0:00:36]}  Nc5 {[%clk 0:01:06]} 30. Rxb5 {[%clk 0:00:30]}  Nxe4 {[%clk 0:01:01]} 31. Qc4 {[%clk 0:00:14]}  Qxc4 {[%clk 0:00:56]} 32. Bxc4 {[%clk 0:00:15]}  Nxc3 {[%clk 0:00:55]} 33. Rb7 {[%clk 0:00:15]}  Nd5 {[%clk 0:00:47]} 34. g5 {[%clk 0:00:13]}  h5 {[%clk 0:00:45]} 35. Nd2 {[%clk 0:00:12]}  Nf4 {[%clk 0:00:33]} 36. Bxf7+ {[%clk 0:00:11]}  Kh7 {[%clk 0:00:33]} 37. Ne4 {[%clk 0:00:12]}  Rd1+ {[%clk 0:00:33]} 38. Kh2 {[%clk 0:00:12]}  Rd4 {[%clk 0:00:29]} 39. f3 {[%clk 0:00:12]}  Ra4 {[%clk 0:00:27]} 40. Rb8 {[%clk 0:00:12]}  Ra1 {[%clk 0:00:21]} 41. Bg8+ {[%clk 0:00:12]}  Kh8 {[%clk 0:00:21]} 42. Bc4+ {[%clk 0:00:12]}  Kh7 {[%clk 0:00:21]} 43. Rb7 {[%clk 0:00:10]}  Ra8 {[%clk 0:00:18]} 44. Rc7 {[%clk 0:00:06]}  Rf8 {[%clk 0:00:15]} 45. g3 {[%clk 0:00:05]}  Kh8 {[%clk 0:00:16]} 46. gxf4 {[%clk 0:00:05]}  exf4 {[%clk 0:00:16]} 47. Kh3 {[%clk 0:00:05]}  Be5 {[%clk 0:00:16]} 48. Rf7 {[%clk 0:00:04]}  Rxf7 {[%clk 0:00:16]} 49. Bxf7 {[%clk 0:00:05]}  Kg7 {[%clk 0:00:16]} 50. Be8 {[%clk 0:00:05]}  Bc7 {[%clk 0:00:16]} 51. Kg2 {[%clk 0:00:05]}  Bb8 {[%clk 0:00:16]} 52. Kf1 {[%clk 0:00:05]}  Ba7 {[%clk 0:00:17]} 53. Ke2 {[%clk 0:00:05]}  Be3 {[%clk 0:00:18]} 54. Kd3 {[%clk 0:00:06]}  Bb6 {[%clk 0:00:18]} 55. Kc4 {[%clk 0:00:06]}  Bd8 {[%clk 0:00:19]} 56. Kd5 {[%clk 0:00:06]}  h4 {[%clk 0:00:20]} 57. Bd7 {[%clk 0:00:06]}  h3 {[%clk 0:00:21]} 58. Bxh3 {[%clk 0:00:07]}  Be7 {[%clk 0:00:21]} 59. Bg4 {[%clk 0:00:07]}  Bd8 {[%clk 0:00:22]} 60. Ke6 {[%clk 0:00:08]}  Bb6 {[%clk 0:00:22]} 61. Ke5 {[%clk 0:00:08]}  Ba5 {[%clk 0:00:23]} 62. Kxf4 {[%clk 0:00:08]}  Bb4 {[%clk 0:00:23]} 63. Ke5 {[%clk 0:00:09]}  Ba5 {[%clk 0:00:24]} 64. Ke6 {[%clk 0:00:09]}  Bc7 {[%clk 0:00:25]} 65. f4 {[%clk 0:00:10]}  Bb8 {[%clk 0:00:26]} 66. f5 {[%clk 0:00:10]}  Ba7 {[%clk 0:00:27]} 67. f6+ {[%clk 0:00:11]}  Kf8 {[%clk 0:00:27]} 68. Be2 {[%clk 0:00:12]}  Be3 {[%clk 0:00:26]} 69. Bb5 {[%clk 0:00:12]}  Bc1 {[%clk 0:00:26]} 70. Nd6 {[%clk 0:00:13]}  Be3 {[%clk 0:00:26]} 71. Ne4 {[%clk 0:00:14]}  Bxg5 {[%clk 0:00:27]} 72. Nxg5 {[%clk 0:00:15]}  Kg8 {[%clk 0:00:27]} 73. f7+ {[%clk 0:00:15]}  Kg7 {[%clk 0:00:28]} 74. Ke7 {[%clk 0:00:15]}  Kh6 {[%clk 0:00:28]} 75. f8=Q+ {[%clk 0:00:15]}  Kxg5 {[%clk 0:00:29]} 76. Qf6+ {[%clk 0:00:15]}  Kg4 {[%clk 0:00:29]} 77. Qxg6+ {[%clk 0:00:15]}  Kf4 {[%clk 0:00:30]} 78. Be8 {[%clk 0:00:15]}  Ke5 {[%clk 0:00:31]} 79. Qg5+ {[%clk 0:00:15]}  Kd4 {[%clk 0:00:32]} 80. Kd6 {[%clk 0:00:14]} 1-0


[Site "https://www.chess.com"]